bitfinex/quotes_BTCUSD_20250616
["timestamp","ask_amount","ask_price","bid_price","bid_amount"]
[1750067615108,0.68774687,107090.0,107080.0,0.08537254]
[1750067615359,0.72714687,107090.0,107080.0,0.08537254]
[1750067616022,0.72714687,107090.0,107080.0,0.11632485]
[1750067623785,0.68774687,107090.0,107080.0,0.11632485]
[1750067624003,0.72702687,107090.0,107080.0,0.11632485]
[1750067658851,0.70468632,107090.0,107080.0,0.11632485]
[1750067660402,0.72704912,107090.0,107080.0,0.11632485]
[1750067663295,0.68776912,107090.0,107080.0,0.11632485]
[1750067663510,0.72700912,107090.0,107080.0,0.11632485]
[1750067664464,0.68776912,107090.0,107080.0,0.11632485]
[1750067664725,0.72700912,107090.0,107080.0,0.11632485]
[1750067666505,0.68776912,107090.0,107080.0,0.11632485]
[1750067666695,0.72700912,107090.0,107080.0,0.11632485]
[1750067676247,0.75496262,107090.0,107080.0,0.11632485]
[1750067681100,0.80560347,107090.0,107080.0,0.05047254]
[1750067681312,0.80560347,107090.0,107060.0,0.21483223]
[1750067681313,0.34,107070.0,107060.0,0.21483223]
[1750067681524,0.35867814,107070.0,107060.0,0.22417217]
[1750067681754,0.35867805,107070.0,107060.0,0.24257217]
[1750067682027,0.37735679,107070.0,107060.0,0.25997217]
[1750067682237,0.40542479,107070.0,107060.0,0.32378543]
[1750067682653,0.40542479,107070.0,107060.0,0.32578543]
[1750067683077,0.60155806,107070.0,107060.0,0.32578543]
[1750067683270,0.60155876,107070.0,107060.0,0.32578543]
[1750067684766,0.41476508,107070.0,107060.0,0.32578543]
[1750067686102,0.4054254,107070.0,107060.0,0.32578543]
[1750067686310,0.368068,107070.0,107060.0,0.32578543]
[1750067686533,0.38674649,107070.0,107060.0,0.32578543]
[1750067686739,0.3867464,107070.0,107060.0,0.32578543]
[1750067688660,0.37740707,107070.0,107060.0,0.32578543]
[1750067688866,0.38674631,107070.0,107060.0,0.32578543]
[1750067689292,0.39608564,107070.0,107060.0,0.32578543]
[1750067690169,0.59589141,107070.0,107060.0,0.22541113]
[1750067690385,0.59589141,107070.0,107060.0,0.23475168]
[1750067690811,0.58655199,107070.0,107060.0,0.0386]
[1750067691590,0.56420136,107070.0,107060.0,0.0386]
[1750067691799,0.58654467,107070.0,107060.0,0.0386]
[1750067692226,0.58654467,107070.0,107060.0,0.08307834]
[1750067692440,0.56420136,107070.0,107060.0,0.08307834]
[1750067692667,0.66173991,107070.0,107060.0,0.08307834]
[1750067695023,0.66173991,107070.0,107060.0,0.06467834]
[1750067695655,0.66173991,107070.0,107060.0,0.04647834]
[1750067698550,0.66173991,107070.0,107060.0,0.002]
[1750067698551,0.75798167,107070.0,107060.0,0.002]
[1750067699601,0.91002167,107070.0,107060.0,0.002]
[1750067701441,0.92842167,107070.0,107060.0,0.002]
[1750067701923,0.91002167,107070.0,107060.0,0.002]
[1750067709375,0.75798167,107070.0,107060.0,0.002]
[1750067709585,0.94926167,107070.0,107060.0,0.002]
[1750067711009,0.75798167,107070.0,107060.0,0.002]
[1750067711240,0.94926167,107070.0,107060.0,0.002]
[1750067711928,0.6827831,107070.0,107060.0,0.0195]
[1750067712155,0.8740631,107070.0,107060.0,0.0372]
[1750067712646,0.8740631,107070.0,107060.0,0.06634402]
[1750067713068,0.8740631,107070.0,107060.0,0.0372]
[1750067720936,0.58654134,107070.0,107060.0,0.0372]
[1750067721152,0.75548136,107070.0,107060.0,0.0372]
[1750067721374,0.77783667,107070.0,107060.0,0.0372]
[1750067721589,0.62579667,107070.0,107060.0,0.0372]
[1750067722011,0.62579667,107070.0,107060.0,0.06727799]
[1750067728157,0.58655667,107070.0,107060.0,0.06727799]
[1750067728371,0.62579667,107070.0,107060.0,0.06727799]
[1750067729416,0.58655667,107070.0,107060.0,0.06727799]
[1750067729622,0.62579667,107070.0,107060.0,0.06727799]
[1750067733017,0.62579667,107070.0,107060.0,0.25408912]
[1750067733241,0.58655667,107070.0,107060.0,0.26342958]
[1750067733499,0.09072146,107090.0,107080.0,0.2413536]
[1750067733729,0.28207835,107090.0,107080.0,0.27762998]
[1750067733969,0.28207835,107090.0,107080.0,0.28696861]
[1750067734468,0.27274059,107090.0,107080.0,0.27762998]
[1750067734690,0.61274059,107090.0,107080.0,0.27762998]
[1750067734900,0.57750059,107090.0,107080.0,0.2869687]
[1750067735116,0.61774059,107090.0,107080.0,0.2869687]
[1750067739109,0.60840274,107090.0,107080.0,0.27762998]
[1750067739311,0.60840274,107090.0,107080.0,0.2869687]
[1750067741023,0.60840274,107090.0,107080.0,0.29630733]
[1750067741240,0.60840274,107090.0,107080.0,0.2869687]
[1750067741673,0.60840274,107090.0,107080.0,0.27762998]
[1750067741910,0.60840274,107090.0,107080.0,0.2869687]
[1750067742334,0.60840274,107090.0,107080.0,0.29630733]
[1750067742563,0.60840274,107090.0,107080.0,0.2869687]
[1750067742782,0.60840274,107090.0,107080.0,0.27762998]
[1750067743253,0.60840274,107090.0,107080.0,0.2869687]
[1750067743468,0.60840274,107090.0,107080.0,0.27762998]
[1750067744133,0.60840274,107090.0,107080.0,0.2869687]
[1750067744587,0.60840274,107090.0,107080.0,0.27762998]
[1750067750645,0.60840274,107090.0,107080.0,0.28696861]
[1750067750865,0.60840274,107090.0,107080.0,0.27762998]
[1750067752164,0.34933898,107070.0,107060.0,0.35786817]
[1750067752410,0.34933898,107070.0,107060.0,0.53788877]
[1750067752664,0.35867822,107070.0,107060.0,0.53788877]
[1750067752895,0.35867814,107070.0,107060.0,0.53788877]
[1750067753126,0.37735688,107070.0,107060.0,0.53788877]
[1750067753804,0.38669647,107070.0,107060.0,0.53788877]
[1750067754049,0.57349015,107070.0,107060.0,0.53788877]
[1750067754283,0.57349085,107070.0,107060.0,0.53788877]
[1750067754745,0.57349085,107070.0,107060.0,0.53988877]
[1750067756320,0.56415169,107070.0,107060.0,0.53054883]
[1750067757039,0.54547295,107070.0,107060.0,0.0374]
[1750067757276,0.57354295,107070.0,107060.0,0.0374]
[1750067757502,0.61274295,107070.0,107060.0,0.0374]
[1750067761029,0.61274295,107070.0,107060.0,0.002]
[1750067775255,0.63503784,107070.0,107060.0,0.002]
[1750067780205,0.61274295,107070.0,107060.0,0.002]
[1750067780371,0.63505087,107070.0,107060.0,0.002]
[1750067781377,0.63506174,107070.0,107060.0,0.002]
[1750067793344,0.66296023,107070.0,107060.0,0.0198]
[1750067795064,0.66296023,107070.0,107060.0,0.0382]
[1750067796128,0.63506174,107070.0,107060.0,0.0382]
[1750067797599,0.66296023,107070.0,107060.0,0.0382]
[1750067797821,0.63506174,107070.0,107060.0,0.0382]
[1750067799087,0.59586174,107070.0,107060.0,0.0382]
[1750067799299,0.63506174,107070.0,107060.0,0.0382]
[1750067801592,0.63506174,107070.0,107040.0,0.34344579]
[1750067801593,0.34,107050.0,107040.0,0.02326579]
[1750067801835,0.57353353,107050.0,107040.0,0.21011182]
[1750067802036,0.56419289,107050.0,107040.0,0.21011182]
[1750067802236,0.37741464,107050.0,107040.0,0.35207943]
[1750067802492,0.40543761,107050.0,107040.0,0.35207943]
[1750067802668,0.60160753,107050.0,107040.0,0.35207943]
[1750067802870,0.60160831,107050.0,107040.0,0.3520796]
[1750067803263,0.60160831,107050.0,107040.0,0.51342137]
[1750067804076,0.60160831,107050.0,107040.0,0.36142137]
[1750067804275,0.60160831,107050.0,107040.0,0.51342137]
[1750067804477,0.60160831,107050.0,107040.0,0.51442137]
[1750067805079,0.59226758,107050.0,107040.0,0.51442137]
[1750067805523,0.58292659,107050.0,107040.0,0.5050796]
[1750067806144,0.58292659,107050.0,107040.0,0.3530796]
[1750067806349,0.58292659,107050.0,107040.0,0.5050796]
[1750067808277,0.57358534,107050.0,107040.0,0.49573791]
[1750067808681,0.57358534,107050.0,107040.0,0.50507995]
[1750067808923,0.55490258,107050.0,107040.0,0.47705358]
[1750067809067,0.55490258,107050.0,107040.0,0.29020755]
[1750067809292,0.55490258,107050.0,107040.0,0.13820755]
[1750067809504,0.55490258,107050.0,107040.0,0.04196579]
[1750067809720,0.55490258,107050.0,107040.0,0.19396579]
[1750067811097,0.59410258,107050.0,107040.0,0.19396579]
[1750067813287,0.59410258,107050.0,107040.0,0.04196579]
[1750067833538,0.61643747,107050.0,107040.0,0.04196579]
[1750067835057,0.61730547,107050.0,107040.0,0.04196579]
[1750067836398,0.61643747,107050.0,107040.0,0.04109779]
[1750067837680,0.61643747,107050.0,107040.0,0.00479779]
[1750067844796,0.61643747,107050.0,107040.0,0.02232578]
[1750067845453,0.61643747,107050.0,107040.0,0.00479779]
[1750067845880,0.61643747,107050.0,107040.0,0.02232578]
[1750067846095,0.61643747,107050.0,107040.0,0.00479779]
[1750067846373,0.61643747,107050.0,107040.0,0.03952578]
[1750067846584,0.61643747,107050.0,107040.0,0.02199779]
[1750067846787,0.61643747,107050.0,107040.0,0.03952578]
[1750067847001,0.61643747,107050.0,107040.0,0.02199779]
[1750067847207,0.61643747,107050.0,107040.0,0.03952345]
[1750067847633,0.61643747,107050.0,107040.0,0.02199779]
[1750067847844,0.61643747,107050.0,107040.0,0.03952345]
[1750067848463,0.61643747,107050.0,107040.0,0.02199779]
[1750067848667,0.61643747,107050.0,107040.0,0.03952345]
[1750067849094,0.61643747,107050.0,107040.0,0.0395235]
[1750067849315,0.61643747,107050.0,107040.0,0.03952351]
[1750067849541,0.53618815,107040.0,107030.0,0.0294387]
[1750067849758,0.53618815,107040.0,107030.0,0.0108387]
[1750067849759,0.57702304,107040.0,107030.0,0.0108387]
[1750067850431,0.60510204,107040.0,107030.0,0.0108387]
[1750067851734,0.60710204,107040.0,107030.0,0.0108387]
[1750067852431,0.53620649,107030.0,107020.0,0.0176]
[1750067853085,0.53620649,107030.0,107020.0,0.24026877]
[1750067853272,0.53620649,107030.0,107020.0,0.23092499]
[1750067853536,0.53620649,107030.0,107020.0,0.24026886]
[1750067853753,0.53633805,107030.0,107020.0,0.24026886]
[1750067854008,0.53633805,107030.0,107020.0,0.25895633]
[1750067854223,0.54568096,107030.0,107020.0,0.26829994]
[1750067854432,0.54568096,107030.0,107020.0,0.25895633]
[1750067855308,0.36816064,107030.0,107020.0,0.25895633]
[1750067855950,0.35881747,107030.0,107020.0,0.26829994]
[1750067856165,0.35881712,107030.0,107020.0,0.26829933]
[1750067856369,0.36815941,107030.0,107020.0,0.26829933]
[1750067857026,0.40558132,107030.0,107020.0,0.26829933]
[1750067857209,0.41492432,107030.0,107020.0,0.26829933]
[1750067857915,0.41492502,107030.0,107020.0,0.26829933]
[1750067858749,0.40558194,107030.0,107020.0,0.26829933]
[1750067858973,0.36821056,107030.0,107020.0,0.36454109]
[1750067859270,0.00013156,107030.0,107020.0,0.51666109]
[1750067859489,0.00013156,107030.0,107020.0,0.56666109]
[1750067859701,0.20549365,107060.0,107050.0,0.24051134]
[1750067859924,0.57361283,107060.0,107050.0,0.22182858]
[1750067860142,0.53617,107050.0,107040.0,0.23297238]
[1750067860362,0.54551116,107050.0,107040.0,0.40389637]
[1750067860553,0.55485206,107050.0,107040.0,0.41323823]
[1750067861028,0.58292606,107050.0,107040.0,0.40389637]
[1750067861253,0.58292606,107050.0,107040.0,0.39455442]
[1750067861482,0.58292606,107050.0,107040.0,0.40389637]
[1750067861708,0.58392606,107050.0,107040.0,0.39455442]
[1750067861984,0.58392606,107050.0,107040.0,0.40389637]
[1750067862203,0.58392606,107050.0,107040.0,0.41323823]
[1750067863524,0.38775606,107050.0,107040.0,0.41323823]
[1750067863751,0.58392606,107050.0,107040.0,0.41323823]
[1750067864602,0.031074,107050.0,107040.0,0.42257948]
[1750067864831,0.35234081,107050.0,107040.0,0.42257948]
[1750067865036,0.343,107050.0,107040.0,0.51882124]
[1750067865694,0.003,107050.0,107040.0,0.51882124]
[1750067865911,0.343,107050.0,107040.0,0.51882124]
[1750067866349,0.003,107050.0,107040.0,0.51882124]
[1750067866578,0.003,107050.0,107040.0,0.56882124]
[1750067867244,0.002,107050.0,107040.0,0.56882124]
[1750067867694,4.718e-05,107060.0,107050.0,0.24995181]
[1750067867975,4.718e-05,107060.0,107050.0,0.34619357]
[1750067870008,4.718e-05,107060.0,107050.0,0.34719357]
[1750067870214,0.00204718,107060.0,107050.0,0.34719357]
[1750067873098,0.00018916,107060.0,107050.0,0.39719357]
[1750067873789,0.00018916,107060.0,107050.0,0.39619357]
[1750067874019,1.02e-05,107060.0,107050.0,0.43073442]
[1750067874258,0.07519857,107090.0,107080.0,0.25089162]
[1750067874494,0.07519857,107090.0,107080.0,0.49937338]
[1750067874702,0.41519857,107090.0,107080.0,0.49937338]
[1750067875607,0.41619857,107090.0,107080.0,0.34713338]
[1750067875867,0.42562397,107090.0,107080.0,0.49933338]
[1750067876056,0.41628673,107090.0,107080.0,0.49933338]
[1750067876511,0.42562397,107090.0,107080.0,0.49933338]
[1750067876729,0.42562388,107090.0,107080.0,0.66280454]
[1750067877156,0.41628673,107090.0,107080.0,0.66280454]
[1750067877586,0.41628673,107090.0,107080.0,0.49933338]
[1750067877801,0.42562397,107090.0,107080.0,0.49933338]
[1750067878508,0.41628673,107090.0,107080.0,0.49933338]
[1750067878759,0.42562397,107090.0,107080.0,0.49933338]
[1750067879407,0.41628673,107090.0,107080.0,0.49933338]
[1750067879620,0.42562397,107090.0,107080.0,0.49933338]
[1750067880049,0.43496138,107090.0,107080.0,0.49933338]
[1750067880916,0.43496138,107090.0,107080.0,0.66279655]
[1750067881130,0.43496138,107090.0,107080.0,0.49933338]
[1750067881338,0.42562397,107090.0,107080.0,0.49933338]
[1750067881986,0.43496138,107090.0,107080.0,0.66279655]
[1750067882657,0.35976272,107090.0,107080.0,0.66279655]
[1750067883115,0.36910013,107090.0,107080.0,0.66279655]
[1750067883321,0.36910013,107090.0,107080.0,0.49933338]
[1750067883565,0.37843772,107090.0,107080.0,0.51059255]
[1750067883787,0.38777539,107090.0,107080.0,0.66267255]
[1750067884007,0.37843815,107090.0,107080.0,0.66267255]
[1750067884240,0.38777591,107090.0,107080.0,0.66267255]
[1750067884923,0.37843859,107090.0,107080.0,0.49921346]
[1750067885142,0.36910083,107090.0,107080.0,0.50855166]
[1750067885352,0.37843868,107090.0,107080.0,0.50855166]
[1750067885776,0.36910083,107090.0,107080.0,0.50855166]
[1750067885992,0.37843859,107090.0,107080.0,0.50855166]
[1750067886434,0.37843859,107090.0,107080.0,0.35647166]
[1750067886703,0.38777644,107090.0,107080.0,0.50855166]
[1750067886966,0.38777644,107090.0,107080.0,0.49025166]
[1750067887524,0.38777697,107090.0,107080.0,0.33817166]
[1750067887738,0.38777697,107090.0,107080.0,0.49021166]
[1750067887927,0.38777697,107090.0,107080.0,0.48087346]
[1750067888540,0.37843903,107090.0,107080.0,0.49021166]
[1750067888743,0.36910118,107090.0,107080.0,0.49021166]
[1750067890380,0.35976342,107090.0,107080.0,0.49021166]
[1750067890582,0.35976342,107090.0,107080.0,0.48083346]
[1750067890784,0.35976342,107090.0,107080.0,0.49017166]
[1750067891002,0.36910118,107090.0,107080.0,0.49017166]
[1750067891606,0.36910118,107090.0,107080.0,0.32883346]
[1750067891863,0.37843903,107090.0,107080.0,0.31949518]
[1750067892081,0.37843903,107090.0,107080.0,0.48079338]
[1750067892303,0.56519783,107090.0,107080.0,0.47145518]
[1750067892536,0.57446024,107090.0,107080.0,0.19611487]
[1750067892752,0.57446024,107090.0,107080.0,0.35741342]
[1750067893835,0.56512257,107090.0,107080.0,0.34807487]
[1750067894044,0.56512257,107090.0,107080.0,0.35741333]
[1750067894256,0.56512257,107090.0,107080.0,0.36675188]
[1750067894467,0.56512257,107090.0,107080.0,0.35741342]
[1750067894677,0.59318657,107090.0,107080.0,0.36675188]
[1750067894893,0.59318657,107090.0,107080.0,0.35741342]
[1750067895107,0.59318657,107090.0,107080.0,0.34807487]
[1750067895535,0.61549115,107090.0,107080.0,0.34807487]
[1750067896190,0.61549115,107090.0,107080.0,0.35741342]
[1750067897097,0.61549115,107090.0,107080.0,0.36675188]
[1750067897504,0.59689115,107090.0,107080.0,0.36675188]
[1750067897723,0.59689115,107090.0,107080.0,0.38542853]
[1750067897724,0.41013235,107090.0,107080.0,0.38542853]
[1750067897938,0.38782777,107090.0,107080.0,0.38542853]
[1750067898152,0.38782777,107090.0,107080.0,0.3854281]
[1750067898153,0.38782742,107090.0,107080.0,0.3854281]
[1750067898992,0.39516527,107090.0,107080.0,0.3760899]
[1750067899194,0.42680779,107090.0,107080.0,0.36675162]
[1750067899332,0.41746985,107090.0,107080.0,0.3760899]
[1750067899983,0.41746985,107090.0,107080.0,0.3854281]
[1750067900198,0.41746985,107090.0,107080.0,0.3760899]
[1750067900486,0.39516527,107090.0,107080.0,0.3760899]
[1750067900919,0.39516527,107090.0,107080.0,0.3854281]
[1750067901129,0.38582742,107090.0,107080.0,0.3854281]
[1750067901346,0.40816468,107090.0,107080.0,0.3854281]
[1750067901544,0.41750183,107090.0,107080.0,0.3854281]
[1750067901781,0.42683959,107090.0,107080.0,0.3854281]
[1750067902002,0.41750183,107090.0,107080.0,0.3854281]
[1750067902207,0.42683968,107090.0,107080.0,0.3760899]
[1750067902613,0.42683959,107090.0,107080.0,0.3854281]
[1750067903233,0.41750183,107090.0,107080.0,0.3854281]
[1750067903440,0.41750183,107090.0,107080.0,0.4039281]
[1750067903831,0.40816416,107090.0,107080.0,0.4039281]
[1750067904259,0.38948942,107090.0,107080.0,0.4039281]
[1750067904469,0.39882666,107090.0,107080.0,0.4218281]
[1750067904674,0.36142542,107090.0,107080.0,0.4218281]
[1750067904880,0.33908816,107090.0,107080.0,0.4218281]
[1750067908958,0.33908816,107090.0,107080.0,0.58506144]
[1750067909362,0.33908816,107090.0,107080.0,0.6813032]
[1750067910461,0.33908816,107090.0,107080.0,0.51806986]
[1750067910669,0.33908816,107090.0,107080.0,0.6813032]
[1750067912194,0.33908816,107090.0,107080.0,0.51806986]
[1750067912613,0.33908816,107090.0,107080.0,0.65940353]
[1750067914339,0.33908816,107090.0,107080.0,0.51806986]
[1750067915643,0.33908816,107090.0,107080.0,0.65940353]
[1750067915849,0.33908816,107090.0,107080.0,0.51806986]
[1750067916476,0.33908816,107090.0,107080.0,0.65940353]
[1750067919627,0.33908816,107090.0,107080.0,0.51806986]
[1750067920763,0.33908816,107090.0,107080.0,0.65940353]
[1750067921188,0.33908816,107090.0,107080.0,0.51806986]
[1750067921393,0.33908816,107090.0,107080.0,0.65940353]
[1750067921601,0.34842531,107090.0,107080.0,0.65940353]
[1750067921850,0.33908816,107090.0,107080.0,0.65940353]
[1750067922278,0.34842531,107090.0,107080.0,0.65940353]
[1750067922579,0.33908816,107090.0,107080.0,0.65940353]
[1750067924966,0.33908816,107090.0,107080.0,0.51806986]
[1750067925182,0.34842531,107090.0,107080.0,0.65940353]
[1750067925396,0.33908816,107090.0,107080.0,0.65940353]
[1750067925897,0.35780816,107090.0,107080.0,0.65940353]
[1750067926101,0.33908816,107090.0,107080.0,0.65940353]
[1750067926469,0.33908816,107090.0,107080.0,0.51806986]
[1750067926671,0.33908816,107090.0,107080.0,0.65940353]
[1750067927789,0.33908816,107090.0,107080.0,0.51806986]
[1750067928198,0.33908816,107090.0,107080.0,0.65940353]
[1750067929423,0.34842531,107090.0,107080.0,0.51806986]
[1750067929694,0.34842531,107090.0,107080.0,0.65940353]
[1750067930145,0.34842531,107090.0,107080.0,0.50744353]
[1750067930361,0.34842531,107090.0,107080.0,0.65936353]
[1750067930829,0.35776263,107090.0,107080.0,0.65936353]
[1750067931308,0.34842531,107090.0,107080.0,0.51802986]
[1750067931625,0.36710022,107090.0,107080.0,0.35677158]
[1750067931923,0.38480022,107090.0,107080.0,0.47229158]
[1750067932353,0.36710013,107090.0,107080.0,0.47229158]
[1750067933332,0.36710013,107090.0,107080.0,0.49109158]
[1750067935577,0.35776263,107090.0,107080.0,0.49109158]
[1750067936230,0.36710013,107090.0,107080.0,0.49109158]
[1750067936729,0.36710004,107090.0,107080.0,0.49109158]
[1750067938905,0.37643754,107090.0,107080.0,0.47229158]
[1750067939108,0.40387582,107090.0,107080.0,0.37604982]
[1750067939265,0.40387574,107090.0,107080.0,0.37604982]
[1750067939471,0.40387565,107090.0,107080.0,0.37604982]
[1750067941442,0.39453798,107090.0,107080.0,0.37604982]
[1750067941849,0.40387574,107090.0,107080.0,0.37604982]
[1750067942125,0.39453798,107090.0,107080.0,0.37604982]
[1750067943017,0.40387574,107090.0,107080.0,0.37604982]
[1750067943165,0.39453798,107090.0,107080.0,0.37604982]
[1750067946650,0.37643798,107090.0,107080.0,0.37604982]
[1750067947316,0.38577565,107090.0,107080.0,0.37604982]
[1750067950053,0.37643798,107090.0,107080.0,0.37604982]
[1750067952028,0.36710039,107090.0,107080.0,0.37604982]
[1750067952209,0.39516339,107090.0,107080.0,0.37604982]
[1750067952694,0.38582589,107090.0,107080.0,0.37604982]
[1750067952899,0.39516356,107090.0,107080.0,0.37604982]
[1750067953320,0.39516348,107090.0,107080.0,0.37604982]
[1750067953522,0.40450115,107090.0,107080.0,0.37604982]
[1750067953726,0.39516348,107090.0,107080.0,0.37604982]
[1750067953932,0.39516348,107090.0,107080.0,0.39434982]
[1750067954336,0.40450115,107090.0,107080.0,0.39434982]
[1750067956682,0.41383891,107090.0,107080.0,0.39434982]
[1750067956885,0.40450115,107090.0,107080.0,0.39434982]
[1750067957300,0.39516348,107090.0,107080.0,0.39434982]
[1750067957511,0.40450124,107090.0,107080.0,0.39434982]
[1750067957718,0.39516348,107090.0,107080.0,0.39434982]
[1750067957923,0.40450124,107090.0,107080.0,0.39434982]
[1750067958706,0.39516348,107090.0,107080.0,0.39434982]
[1750067959266,0.40450115,107090.0,107080.0,0.39434982]
[1750067959468,0.38582589,107090.0,107080.0,0.39434982]
[1750067959671,0.39516348,107090.0,107080.0,0.39434982]
[1750067960845,0.40450115,107090.0,107080.0,0.39434982]
[1750067961049,0.39516348,107090.0,107080.0,0.39434982]
[1750067965629,0.40450115,107090.0,107080.0,0.39434982]
[1750067966419,0.40450115,107090.0,107080.0,0.24242982]
[1750067966638,0.41383891,107090.0,107080.0,0.38501145]
[1750067969998,0.40450115,107090.0,107080.0,0.38501145]
[1750067970738,0.41383891,107090.0,107080.0,0.38501145]
[1750067971880,0.40450115,107090.0,107080.0,0.38501145]
[1750067972086,0.41383891,107090.0,107080.0,0.38501145]
[1750067972871,0.60059824,107090.0,107080.0,0.38501145]
[1750067973082,0.60059877,107090.0,107080.0,0.38501145]
[1750067974094,0.40450203,107090.0,107080.0,0.38501145]
[1750067974302,0.40450203,107090.0,107080.0,0.34803496]
[1750067974303,0.59932324,107090.0,107080.0,0.34803496]
[1750067974928,0.58998557,107090.0,107080.0,0.35737351]
[1750067975578,0.58064781,107090.0,107080.0,0.34803496]
[1750067975789,0.58064781,107090.0,107080.0,0.35737359]
[1750067977587,0.57130996,107090.0,107080.0,0.35737359]
[1750067979460,0.57130996,107090.0,107080.0,0.19611496]
[1750067979661,0.57130996,107090.0,107080.0,0.34803496]
[1750067979914,0.57130996,107090.0,107080.0,0.36671214]
[1750067980959,0.55390996,107090.0,107080.0,0.36671214]
[1750067981983,0.55390996,107090.0,107080.0,0.35737359]
[1750067984635,0.57060996,107090.0,107080.0,0.35737359]
[1750067988939,0.55390996,107090.0,107080.0,0.35737359]
[1750067989486,0.55390996,107090.0,107080.0,0.36671214]
[1750067992271,0.55390996,107090.0,107080.0,0.38351214]
[1750067993444,0.55390996,107090.0,107080.0,0.3928506]
[1750067996087,0.36715116,107090.0,107080.0,0.3928506]
[1750067996227,0.37648866,107090.0,107080.0,0.4021888]
[1750067996578,0.3858259,107090.0,107080.0,0.4175888]
[1750067996893,0.39516366,107090.0,107080.0,0.4175888]
[1750067997514,0.39516366,107090.0,107080.0,0.2656688]
[1750067997769,0.39516366,107090.0,107080.0,0.4175888]
[1750067999342,0.3764884,107090.0,107080.0,0.4175888]
[1750067999555,0.38582581,107090.0,107080.0,0.4175888]
[1750067999762,0.3764884,107090.0,107080.0,0.4175888]
[1750067999975,0.02915116,107090.0,107080.0,0.51383056]
[1750068000209,0.00108816,107090.0,107080.0,0.51383056]
[1750068001257,0.00108816,107090.0,107080.0,0.65078563]
[1750068001883,0.01042531,107090.0,107080.0,0.65078563]
[1750068002657,0.00108816,107090.0,107080.0,0.65078563]
[1750068002880,0.0104254,107090.0,107080.0,0.65078563]
[1750068003754,0.01976281,107090.0,107080.0,0.49886563]
[1750068003975,0.01976281,107090.0,107080.0,0.65078563]
[1750068004409,0.0104254,107090.0,107080.0,0.65078563]
[1750068004621,0.01976281,107090.0,107080.0,0.65078563]
[1750068005630,0.01976281,107090.0,107080.0,0.49886563]
[1750068005631,0.36910048,107090.0,107080.0,0.49886563]
[1750068005856,0.36910031,107090.0,107080.0,0.65078563]
[1750068006070,0.56519687,107090.0,107080.0,0.2409306]
[1750068006303,0.57453481,107090.0,107080.0,0.40218853]
[1750068006544,0.57453481,107090.0,107070.0,0.20347792]
[1750068006545,0.3493382,107080.0,107070.0,0.2390565]
[1750068006774,0.35867666,107080.0,107070.0,0.34463715]
[1750068007008,0.36801477,107080.0,107070.0,0.48919718]
[1750068007224,0.3773534,107080.0,107070.0,0.48919718]
[1750068007889,0.36801477,107080.0,107070.0,0.50679718]
[1750068008357,0.36801477,107080.0,107070.0,0.50879718]
[1750068010180,0.36801468,107080.0,107070.0,0.50879718]
[1750068010381,0.36801459,107080.0,107070.0,0.50879718]
[1750068011016,0.34933811,107080.0,107070.0,0.50879718]
[1750068011434,0.35867639,107080.0,107070.0,0.50879718]
[1750068011745,0.34933811,107080.0,107070.0,0.50879718]
[1750068013234,0.34,107080.0,107070.0,0.50879718]
[1750068013903,0.39616483,107090.0,107080.0,0.21479162]
[1750068015296,0.39616483,107090.0,107080.0,0.21579162]
[1750068015959,0.40550268,107090.0,107080.0,0.21579162]
[1750068016397,0.39616483,107090.0,107080.0,0.21579162]
[1750068017273,0.39616483,107090.0,107080.0,0.36771162]
[1750068017720,0.39616483,107090.0,107080.0,0.21579162]
[1750068017938,0.39616483,107090.0,107080.0,0.36771162]
[1750068018406,0.39616483,107090.0,107080.0,0.38391162]
[1750068020155,0.40550268,107090.0,107080.0,0.38391162]
[1750068020567,0.40550268,107090.0,107080.0,0.23199162]
[1750068020742,0.40550268,107090.0,107080.0,0.38391162]
[1750068021435,0.60159942,107090.0,107080.0,0.38391162]
[1750068021859,0.60159942,107090.0,107080.0,0.36391162]
[1750068025404,0.5922621,107090.0,107080.0,0.35457342]
[1750068025817,0.5922621,107090.0,107080.0,0.36391179]
[1750068028956,0.58292451,107090.0,107080.0,0.36391179]
[1750068029567,0.58292451,107090.0,107080.0,0.37325007]
[1750068033996,0.58292451,107090.0,107080.0,0.36391179]
[1750068035803,0.60532465,107090.0,107080.0,0.36391179]
[1750068036823,0.59598689,107090.0,107080.0,0.35457342]
[1750068048125,0.59598689,107090.0,107080.0,0.20265342]
[1750068048338,0.59598689,107090.0,107080.0,0.35453342]
[1750068048783,0.59598689,107090.0,107080.0,0.20265342]
[1750068048996,0.59598689,107090.0,107080.0,0.35453342]
[1750068050521,0.59598689,107090.0,107080.0,0.19331496]
[1750068050737,0.59598689,107090.0,107080.0,0.34519496]
[1750068050994,0.57358675,107090.0,107080.0,0.35453359]
[1750068051899,0.59598955,107090.0,107080.0,0.35453359]
[1750068053374,0.59598955,107090.0,107080.0,0.19331496]
[1750068053599,0.6019517,107090.0,107080.0,0.32899505]
[1750068053815,0.5866517,107090.0,107080.0,0.15288]
[1750068054024,0.57731376,107090.0,107080.0,0.34899505]
[1750068054229,0.57731376,107090.0,107080.0,0.36479505]
[1750068056297,0.57731376,107090.0,107080.0,0.37413377]
[1750068056883,0.57731376,107090.0,107080.0,0.3834724]
[1750068059381,0.57731376,107090.0,107080.0,0.39281095]
[1750068059999,0.57731376,107090.0,107080.0,0.3834724]
[1750068060208,0.57731376,107090.0,107080.0,0.37413377]
[1750068060830,0.57731376,107090.0,107080.0,0.36479505]
[1750068061253,0.57731376,107090.0,107080.0,0.37413377]
[1750068062232,0.57731376,107090.0,107080.0,0.17801881]
[1750068062446,0.57731376,107090.0,107080.0,0.36479505]
[1750068062959,0.57731376,107090.0,107080.0,0.17817881]
[1750068063177,0.57731376,107090.0,107080.0,0.36495505]
[1750068063630,0.57731376,107090.0,107080.0,0.16884]
[1750068063840,0.57731376,107090.0,107060.0,0.20221113]
[1750068063841,0.35867805,107070.0,107060.0,0.20221113]
[1750068064051,0.35867805,107070.0,107060.0,0.38239173]
[1750068064475,0.37735679,107070.0,107060.0,0.38239173]
[1750068065116,0.37735679,107070.0,107060.0,0.38543173]
[1750068065317,0.37735679,107070.0,107060.0,0.38843173]
[1750068065524,0.37735671,107070.0,107060.0,0.38843173]
[1750068065934,0.38669621,107070.0,107060.0,0.38851173]
[1750068067201,0.38669691,107070.0,107060.0,0.38851173]
[1750068067400,0.57349059,107070.0,107060.0,0.38855173]
[1750068068133,0.56415143,107070.0,107060.0,0.21755159]
[1750068068345,0.55481219,107070.0,107060.0,0.35447159]
[1750068068567,0.55481219,107070.0,107060.0,0.37315226]
[1750068068814,0.45481219,107070.0,107060.0,0.37315226]
[1750068069030,0.45481219,107070.0,107060.0,0.22083226]
[1750068069239,0.45481219,107070.0,107060.0,0.37315226]
[1750068069652,0.45481219,107070.0,107060.0,0.38249246]
[1750068071528,0.45481219,107070.0,107060.0,0.37315226]
[1750068072175,0.45481219,107070.0,107060.0,0.15832]
[1750068072393,0.45481219,107070.0,107060.0,0.34513113]
[1750068072617,0.48641219,107070.0,107060.0,0.35451168]
[1750068072828,0.48641219,107070.0,107060.0,0.36385206]
[1750068073968,0.47011219,107070.0,107060.0,0.36085206]